{"text_format":"1","workbook":"xlsx","n_sheets":2,"sheets":["Kūno rengybos planas","1 savaitė"],"not_rendered":{"charts":0,"images":0,"macros":1,"external_links":1,"defined_names":21,"comments":0,"pivot_tables":0},"unopened":[],"bounds":{"document_bytes":16777216,"sheet_cells":100000,"rows_first":2000,"rows_last":500,"rows_between":2000,"halvings":0,"cell_chars":16384,"cell_head_chars":4096},"cells_cut":0,"cells_raw":0,"read":"whole","date_system":"1900"}

{"sheet":"Kūno rengybos planas","index":0,"n_rows":27,"n_cols":17,"rows_kept":27,"cut":false,"hidden":false,"merged":[[24,4,24,9],[24,11,24,16],[21,4,21,9],[22,4,22,9],[23,4,23,9],[21,11,21,16],[22,11,22,16],[23,11,23,16],[9,11,9,16],[10,11,10,16],[11,11,11,16],[12,11,12,16],[20,4,20,9],[20,11,20,16],[13,4,13,9],[13,11,13,16],[9,4,9,9],[10,4,10,9],[11,4,11,9],[12,4,12,9]]}
[]
[null,"KŪNO RENGYBOS PLANAS"]
[]
[null,"PRADŽIOS DATA",null,null,"APŠILIMAS",null,null,null,null,null,null,"JĖGOS PRATIMAI"]
[null,"2011-08-01",null,null,"PRATIMAI","KARTAI","SVORIS","SAVAITĖS","DAŽNIS","PRADŽIA",null,"PRATIMAI","KARTAI","SVORIS","SAVAITĖS","DAŽNIS","PRADŽIA"]
[null,"AMŽIUS",null,null,"1 apšilimas",10,30,4,"Kasdien","2011-08-01",null,"1 jėgos pratimas",7,100,4,"Kasdien","2011-08-01"]
[null,46,null,null,"2 apšilimas",10,40,4,"Kasdien","2011-08-01",null,"2 jėgos pratimas",7,125,4,"Kasdien","2011-08-01"]
[null,"LYTIS",null,null,"3 apšilimas",10,20,4,"Kasdien","2011-08-01",null,"3 jėgos pratimas",7,75,4,"Kasdien","2011-08-01"]
[null,"V",null,null,"4 apšilimas",10,50,4,"Kasdien","2011-08-01",null,"4 jėgos pratimas",7,85,4,"Kasdien","2011-08-01"]
[null,"ŪGIS (M)",null,null,"Pastabos:"]
[null,6]
[null,"ŪGIS (CM)"]
[null,0]
[null,"SVORIS (KG)"]
[null,244,null,null,"KARDIOPRATIMAI",null,null,null,null,null,null,"ATVĖSIMAS"]
[null,"KRŪTINĖS APIMTIS (CM)",null,null,"PRATIMAI","KARTAI","SVORIS","SAVAITĖS","DAŽNIS","PRADŽIA",null,"PRATIMAI","KARTAI","SVORIS","SAVAITĖS","DAŽNIS","PRADŽIA"]
[null,48,null,null,"1 kardiopratimas",30,50,4,"Kasdien","2011-08-01",null,"1 atvėsimas",10,30,4,"Kasdien","2011-08-01"]
[null,"LIEMENS APIMTIS (CM)",null,null,"2 kardiopratimas",30,60,4,"Kasdien","2011-08-01",null,"2 atvėsimas",10,40,4,"Kasdien","2011-08-01"]
[null,44,null,null,"3 kardiopratimas",30,40,4,"Kasdien","2011-08-01",null,"3 atvėsimas",10,20,4,"Kasdien","2011-08-01"]
[null,"KŪNO RIEBALŲ KIEKIS (TIKSLINIS)",null,null,"4 kardiopratimas",30,30,4,"Kasdien","2011-08-01",null,"4 atvėsimas",10,50,4,"Kasdien","2011-08-01"]
[null,9]
[null,"KŪNO RIEBALŲ KIEKIS"]
[null,11]
[null,"KMI (TIKSLINIS)"]
[null,22]
[null,"KMI"]
[null,{"$f":"IF(B15,(B15/(PlanasŪgisMetrais*12+PlanasŪgisCentimetrais)/(PlanasŪgisMetrais*12+PlanasŪgisCentimetrais)*KMI_koeficientas),0)","v":33.092010493827161}]

{"sheet":"1 savaitė","index":1,"n_rows":30,"n_cols":17,"rows_kept":30,"cut":false,"hidden":false,"merged":[[9,4,9,16],[16,4,16,16],[23,4,23,16],[30,4,30,16]]}
[]
[null,"KŪNO RENGYBOS PLANAS"]
[null,null,null,null,null,null,null,null,null,null,null,null,null,null,null,null,"Pastaba: kurti kiekvienos savaitės šio lapo dublikatą."]
[null,"SAVAITĖ PRASIDEDA NUO",null,null,"APŠILIMAS","PLANAS",null,{"$f":"PradžiosData","v":"2011-08-01"},null,{"$f":"H4+1","v":"2011-08-02"},null,{"$f":"J4+1","v":"2011-08-03"},null,{"$f":"L4+1","v":"2011-08-04"},null,{"$f":"N4+1","v":"2011-08-05"}]
[null,"2011-08-01",null,null,"PRATIMAI","KARTAI","SVORIS","KARTAI","SVORIS","KARTAI","SVORIS","KARTAI","SVORIS","KARTAI","SVORIS","KARTAI","SVORIS"]
[null,"DABARTINIS SVORIS (KG)",null,null,{"$f":"'Kūno rengybos planas'!E6","v":"1 apšilimas"},{"$f":"'Kūno rengybos planas'!F6","v":10},{"$f":"'Kūno rengybos planas'!G6","v":30},10,30,10,30,10,30,10,30,10,30]
[null,241,null,null,{"$f":"'Kūno rengybos planas'!E7","v":"2 apšilimas"},{"$f":"'Kūno rengybos planas'!F7","v":10},{"$f":"'Kūno rengybos planas'!G7","v":40},10,40,10,40,10,40,10,40,10,40]
[null,"DABARTINĖ KRŪTINĖS APIMTIS (CM)",null,null,{"$f":"'Kūno rengybos planas'!E8","v":"3 apšilimas"},{"$f":"'Kūno rengybos planas'!F8","v":10},{"$f":"'Kūno rengybos planas'!G8","v":20},10,20,10,20,10,20,10,20,10,20]
[null,48,null,null,{"$f":"'Kūno rengybos planas'!E9","v":"4 apšilimas"},{"$f":"'Kūno rengybos planas'!F9","v":10},{"$f":"'Kūno rengybos planas'!G9","v":50},10,50,10,50,10,50,10,50,10,50]
[null,"DABARTINĖ LIEMENS APIMTIS (CM)"]
[null,44,null,null,"JĖGOS PRATIMAI","PLANAS",null,{"$f":"PradžiosData","v":"2011-08-01"},null,{"$f":"H11+1","v":"2011-08-02"},null,{"$f":"J11+1","v":"2011-08-03"},null,{"$f":"L11+1","v":"2011-08-04"},null,{"$f":"N11+1","v":"2011-08-05"}]
[null,"DABARTINIS KŪNO RIEBALŲ KIEKIS",null,null,"PRATIMAI","KARTAI","SVORIS","KARTAI","SVORIS","KARTAI","SVORIS","KARTAI","SVORIS","KARTAI","SVORIS","KARTAI","SVORIS"]
[null,10.8,null,null,{"$f":"'Kūno rengybos planas'!L6","v":"1 jėgos pratimas"},{"$f":"'Kūno rengybos planas'!M6","v":7},{"$f":"'Kūno rengybos planas'!N6","v":100},5,100,6,90,7,100,7,100,7,100]
[null,"KŪNO RIEBALŲ KIEKIS (TIKSLINIS)",null,null,{"$f":"'Kūno rengybos planas'!L7","v":"2 jėgos pratimas"},{"$f":"'Kūno rengybos planas'!M7","v":7},{"$f":"'Kūno rengybos planas'!N7","v":125},5,125,6,125,5,125,7,125,7,125]
[null,9,null,null,{"$f":"'Kūno rengybos planas'!L8","v":"3 jėgos pratimas"},{"$f":"'Kūno rengybos planas'!M8","v":7},{"$f":"'Kūno rengybos planas'!N8","v":75},7,75,7,75,7,75,7,75,7,75]
[null,"DABARTINIS KMI",null,null,{"$f":"'Kūno rengybos planas'!L9","v":"4 jėgos pratimas"},{"$f":"'Kūno rengybos planas'!M9","v":7},{"$f":"'Kūno rengybos planas'!N9","v":85},6,85,7,85,7,85,7,85,7,85]
[null,{"$f":"IFERROR(IF(B7,(B7/([1]!PlanHeightFeet*12+[1]!PlanHeightInches)/([1]!PlanHeightFeet*12+[1]!PlanHeightInches)*KMI_koeficientas),0),0)","v":0}]
[null,"KMI (TIKSLINIS)",null,null,"KARDIOPRATIMAI","PLANAS",null,{"$f":"PradžiosData","v":"2011-08-01"},null,{"$f":"H18+1","v":"2011-08-02"},null,{"$f":"J18+1","v":"2011-08-03"},null,{"$f":"L18+1","v":"2011-08-04"},null,{"$f":"N18+1","v":"2011-08-05"}]
[null,{"$f":"'Kūno rengybos planas'!B25","v":22},null,null,"PRATIMAI","KARTAI","SVORIS","KARTAI","SVORIS","KARTAI","SVORIS","KARTAI","SVORIS","KARTAI","SVORIS","KARTAI","SVORIS"]
[null,null,null,null,{"$f":"'Kūno rengybos planas'!E17","v":"1 kardiopratimas"},{"$f":"'Kūno rengybos planas'!F17","v":30},{"$f":"'Kūno rengybos planas'!G17","v":50},30,50,30,50,30,50,30,50,30,50]
[null,null,null,null,{"$f":"'Kūno rengybos planas'!E18","v":"2 kardiopratimas"},{"$f":"'Kūno rengybos planas'!F18","v":30},{"$f":"'Kūno rengybos planas'!G18","v":60},25,60,26,60,29,60,30,60,30,60]
[null,null,null,null,{"$f":"'Kūno rengybos planas'!E19","v":"3 kardiopratimas"},{"$f":"'Kūno rengybos planas'!F19","v":30},{"$f":"'Kūno rengybos planas'!G19","v":40},26,40,27,40,30,40,30,40,28,40]
[null,null,null,null,{"$f":"'Kūno rengybos planas'!E20","v":"4 kardiopratimas"},{"$f":"'Kūno rengybos planas'!F20","v":30},{"$f":"'Kūno rengybos planas'!G20","v":30},30,30,30,30,30,30,30,30,30,30]
[]
[null,null,null,null,"ATVĖSIMAS","PLANAS",null,{"$f":"PradžiosData","v":"2011-08-01"},null,{"$f":"H25+1","v":"2011-08-02"},null,{"$f":"J25+1","v":"2011-08-03"},null,{"$f":"L25+1","v":"2011-08-04"},null,{"$f":"N25+1","v":"2011-08-05"}]
[null,null,null,null,"PRATIMAI","KARTAI","SVORIS","KARTAI","SVORIS","KARTAI","SVORIS","KARTAI","SVORIS","KARTAI","SVORIS","KARTAI","SVORIS"]
[null,null,null,null,{"$f":"'Kūno rengybos planas'!L17","v":"1 atvėsimas"},{"$f":"'Kūno rengybos planas'!M17","v":10},{"$f":"'Kūno rengybos planas'!N17","v":30},10,30,10,30,10,30,10,30,10,30]
[null,null,null,null,{"$f":"'Kūno rengybos planas'!L18","v":"2 atvėsimas"},{"$f":"'Kūno rengybos planas'!M18","v":10},{"$f":"'Kūno rengybos planas'!N18","v":40},10,40,10,40,10,40,10,40,10,40]
[null,null,null,null,{"$f":"'Kūno rengybos planas'!L19","v":"3 atvėsimas"},{"$f":"'Kūno rengybos planas'!M19","v":10},{"$f":"'Kūno rengybos planas'!N19","v":20},10,20,10,20,10,20,10,20,10,20]
[null,null,null,null,{"$f":"'Kūno rengybos planas'!L20","v":"4 atvėsimas"},{"$f":"'Kūno rengybos planas'!M20","v":10},{"$f":"'Kūno rengybos planas'!N20","v":50},10,50,10,50,10,50,10,50,10,50]